[Event "2026 European Womens Championship"]
[Site "Batumi, GE"]
[Date "2026.05.30"]
[Round "6"]
[White "Sieber, Fiona"]
[Black "Avramidou, Anastasia"]
[Result "1/2-1/2"]
[Board "79"]
[TimeControl "5400+30"]
[WhiteFideId "12902373"]
[BlackFideId "4239873"]
[WhiteElo "2224"]
[BlackElo "2320"]
[WhiteTitle "WGM"]
[BlackTitle "FM"]
[WhiteClock "0:14:53"]
[BlackClock "0:10:43"]
[Variant "Standard"]

1. e4 {[%clk 1:30:53]}  c5 {[%clk 1:30:53]} 2. Nf3 {[%clk 1:31:09]}  e6 {[%clk 1:31:17]} 3. d4 {[%clk 1:30:39]}  cxd4 {[%clk 1:31:41]}
4. Nxd4 {[%clk 1:31:05]}  Nf6 {[%clk 1:32:02]} 5. Nc3 {[%clk 1:31:31]}  Bb4 {[%clk 1:32:25]} 6. Bd3 {[%clk 1:29:20]}  d6 {[%clk 1:32:44]}
7. O-O {[%clk 1:27:26]}  O-O {[%clk 1:32:56]} 8. Bg5 {[%clk 1:24:05]}  h6 {[%clk 1:27:30]} 9. Bh4 {[%clk 1:19:54]}  g5 {[%clk 1:24:44]}
10. Bg3 {[%clk 1:19:40]}  Bxc3 {[%clk 1:24:59]} 11. bxc3 {[%clk 1:20:07]}  e5 {[%clk 1:25:18]} 12. Nf5 {[%clk 1:16:09]}  Bxf5 {[%clk 1:18:31]}
13. exf5 {[%clk 1:16:35]}  Nbd7 {[%clk 1:18:46]} 14. h4 {[%clk 1:13:43]}  Nc5 {[%clk 1:11:09]} 15. Re1 {[%clk 1:11:22]}  Rc8 {[%clk 1:05:10]}
16. Rb1 {[%clk 1:04:21]}  Kg7 {[%clk 0:52:20]} 17. f3 {[%clk 0:48:27]}  Nd5 {[%clk 0:35:47]} 18. Qd2 {[%clk 0:47:18]}  gxh4 {[%clk 0:35:21]}
19. Bf2 {[%clk 0:38:54]}  Qg5 {[%clk 0:33:48]} 20. Qxg5+ {[%clk 0:39:05]}  hxg5 {[%clk 0:34:12]} 21. Bxc5 {[%clk 0:39:32]}  Rxc5 {[%clk 0:34:37]}
22. Rxb7 {[%clk 0:39:55]}  Rxc3 {[%clk 0:30:32]} 23. Rd7 {[%clk 0:31:15]}  Nf4 {[%clk 0:25:23]} 24. f6+ {[%clk 0:25:49]}  Kh6 {[%clk 0:24:51]}
25. Rxd6 {[%clk 0:25:47]}  Nxd3 {[%clk 0:23:24]} 26. cxd3 {[%clk 0:26:04]}  Rc2 {[%clk 0:22:04]} 27. Rxe5 {[%clk 0:22:39]}  h3 {[%clk 0:21:50]}
28. gxh3 {[%clk 0:22:04]}  Rb8 {[%clk 0:22:19]} 29. Re1 {[%clk 0:22:24]}  Rxa2 {[%clk 0:18:41]} 30. Rd4 {[%clk 0:19:02]}  Rb6 {[%clk 0:15:01]}
31. h4 {[%clk 0:18:26]}  gxh4 {[%clk 0:13:02]} 32. Rxh4+ {[%clk 0:18:37]}  Kg5 {[%clk 0:13:27]} 33. Rh2 {[%clk 0:16:40]}  Ra3 {[%clk 0:11:55]}
34. Rd2 {[%clk 0:16:32]}  Rd6 {[%clk 0:09:22]} 35. Re7 {[%clk 0:16:04]}  Kxf6 {[%clk 0:09:21]} 36. Rb7 {[%clk 0:16:30]}  a5 {[%clk 0:06:37]}
37. Ra7 {[%clk 0:16:56]}  Rdxd3 {[%clk 0:02:35]} 38. Rxd3 {[%clk 0:17:14]}  Rxd3 {[%clk 0:03:00]} 39. Rxa5 {[%clk 0:17:18]}  Rxf3 {[%clk 0:03:25]}
40. Kg2 {[%clk 0:17:45]}  Rf5 {[%clk 0:03:51]} 41. Ra4 {[%clk 0:18:05]}  Kg5 {[%clk 0:04:07]} 42. Kg3 {[%clk 0:18:22]}  Rf1 {[%clk 0:04:31]}
43. Ra5+ {[%clk 0:17:45]}  Kg6 {[%clk 0:04:24]} 44. Kg4 {[%clk 0:17:25]}  f6 {[%clk 0:04:38]} 45. Rb5 {[%clk 0:17:19]}  Ra1 {[%clk 0:03:57]}
46. Kf4 {[%clk 0:17:36]}  Ra4+ {[%clk 0:04:21]} 47. Kf3 {[%clk 0:18:00]}  Ra1 {[%clk 0:04:22]} 48. Kf4 {[%clk 0:17:32]}  Rf1+ {[%clk 0:04:45]}
49. Kg3 {[%clk 0:17:37]}  Rf5 {[%clk 0:05:09]} 50. Rb8 {[%clk 0:16:51]}  Rc5 {[%clk 0:05:17]} 51. Rb3 {[%clk 0:16:34]}  Kg5 {[%clk 0:05:27]}
52. Kf3 {[%clk 0:16:53]}  f5 {[%clk 0:05:47]} 53. Ra3 {[%clk 0:17:09]}  Rc1 {[%clk 0:05:59]} 54. Rb3 {[%clk 0:17:18]}  Rh1 {[%clk 0:06:00]}
55. Kg2 {[%clk 0:16:12]}  Ra1 {[%clk 0:06:19]} 56. Kf3 {[%clk 0:16:35]}  Ra8 {[%clk 0:06:44]} 57. Rc3 {[%clk 0:16:28]}  Rh8 {[%clk 0:07:08]}
58. Rc4 {[%clk 0:13:56]}  Rh3+ {[%clk 0:07:32]} 59. Kf2 {[%clk 0:13:33]}  Ra3 {[%clk 0:07:40]} 60. Rb4 {[%clk 0:13:48]}  Rc3 {[%clk 0:05:39]}
61. Ra4 {[%clk 0:13:55]}  Rb3 {[%clk 0:06:03]} 62. Rc4 {[%clk 0:13:38]}  Rb1 {[%clk 0:06:00]} 63. Ra4 {[%clk 0:13:47]}  Rd1 {[%clk 0:06:03]}
64. Kf3 {[%clk 0:13:24]}  Rf1+ {[%clk 0:06:28]} 65. Kg3 {[%clk 0:13:04]}  Rg1+ {[%clk 0:06:47]} 66. Kf3 {[%clk 0:13:23]}  Rh1 {[%clk 0:07:09]}
67. Rb4 {[%clk 0:13:01]}  Rh3+ {[%clk 0:07:16]} 68. Kg2 {[%clk 0:13:17]}  Re3 {[%clk 0:07:34]} 69. Kf2 {[%clk 0:13:22]}  Re5 {[%clk 0:07:28]}
70. Kf3 {[%clk 0:13:39]}  Ra5 {[%clk 0:07:53]} 71. Rc4 {[%clk 0:13:58]}  Ra3+ {[%clk 0:08:07]} 72. Kf2 {[%clk 0:14:19]}  Rd3 {[%clk 0:08:23]}
73. Ra4 {[%clk 0:14:42]}  Kf6 {[%clk 0:08:48]} 74. Ra6+ {[%clk 0:13:05]}  Ke5 {[%clk 0:09:11]} 75. Ra5+ {[%clk 0:13:27]}  Ke4 {[%clk 0:09:31]}
76. Ra4+ {[%clk 0:13:45]}  Rd4 {[%clk 0:09:55]} 77. Rxd4+ {[%clk 0:14:00]}  Kxd4 {[%clk 0:10:20]} 78. Kf3 {[%clk 0:14:28]}  f4 {[%clk 0:10:43]}
79. Kxf4 {[%clk 0:14:53]} 1/2-1/2

[Event "2026 European Womens Championship"]
[Site "Batumi, GE"]
[Date "2026.05.30"]
[Round "6"]
[White "Kazarian, Anna-Maja"]
[Black "Ismayil, Malak"]
[Result "1-0"]
[Board "80"]
[TimeControl "5400+30"]
[WhiteFideId "1033689"]
[BlackFideId "13412604"]
[WhiteElo "2317"]
[BlackElo "2122"]
[WhiteTitle "FM"]
[BlackTitle "WIM"]
[WhiteClock "0:03:13"]
[BlackClock "0:05:13"]
[Variant "Standard"]

1. e4 {[%clk 1:30:58]}  e5 {[%clk 1:30:57]} 2. Nf3 {[%clk 1:31:24]}  Nc6 {[%clk 1:31:24]} 3. Bb5 {[%clk 1:31:49]}  a6 {[%clk 1:31:50]}
4. Ba4 {[%clk 1:32:16]}  Nf6 {[%clk 1:32:16]} 5. O-O {[%clk 1:32:34]}  Be7 {[%clk 1:32:42]} 6. Re1 {[%clk 1:32:48]}  b5 {[%clk 1:33:01]}
7. Bb3 {[%clk 1:33:13]}  d6 {[%clk 1:32:57]} 8. c3 {[%clk 1:33:01]}  O-O {[%clk 1:33:14]} 9. d4 {[%clk 1:32:11]}  Bg4 {[%clk 1:32:42]}
10. Be3 {[%clk 1:29:26]}  exd4 {[%clk 1:07:05]} 11. cxd4 {[%clk 1:29:42]}  Na5 {[%clk 1:06:18]} 12. Bc2 {[%clk 1:29:29]}  c5 {[%clk 1:06:08]}
13. h3 {[%clk 1:07:51]}  Bh5 {[%clk 0:49:16]} 14. Nbd2 {[%clk 0:54:28]}  Rc8 {[%clk 0:40:00]} 15. d5 {[%clk 0:45:10]}  Bxf3 {[%clk 0:35:22]}
16. Qxf3 {[%clk 0:45:21]}  Nd7 {[%clk 0:35:06]} 17. Qg3 {[%clk 0:43:53]}  Ne5 {[%clk 0:34:39]} 18. b3 {[%clk 0:43:15]}  Bh4 {[%clk 0:33:29]}
19. Qh2 {[%clk 0:39:21]}  c4 {[%clk 0:30:21]} 20. b4 {[%clk 0:38:41]}  c3 {[%clk 0:18:42]} 21. Nb3 {[%clk 0:37:10]}  Nac4 {[%clk 0:15:41]}
22. Bd4 {[%clk 0:26:44]}  Na3 {[%clk 0:12:12]} 23. Re2 {[%clk 0:26:43]}  Bf6 {[%clk 0:04:32]} 24. f4 {[%clk 0:23:16]}  Nxc2 {[%clk 0:04:32]}
25. Rxc2 {[%clk 0:23:04]}  Nd3 {[%clk 0:04:49]} 26. e5 {[%clk 0:22:32]}  dxe5 {[%clk 0:02:31]} 27. fxe5 {[%clk 0:22:39]}  Bg5 {[%clk 0:01:23]}
28. d6 {[%clk 0:19:41]}  Bf4 {[%clk 0:01:47]} 29. g3 {[%clk 0:18:43]}  Qg5 {[%clk 0:01:11]} 30. Kh1 {[%clk 0:10:55]}  Bxe5 {[%clk 0:01:05]}
31. h4 {[%clk 0:09:15]}  Qxg3 {[%clk 0:00:37]} 32. Qxg3 {[%clk 0:09:08]}  Bxg3 {[%clk 0:01:06]} 33. Rd1 {[%clk 0:07:44]}  Nxb4 {[%clk 0:01:19]}
34. Rg2 {[%clk 0:05:50]}  c2 {[%clk 0:01:37]} 35. Rdg1 {[%clk 0:02:52]}  Nxa2 {[%clk 0:01:58]} 36. Rxg3 {[%clk 0:03:13]}  g6 {[%clk 0:02:25]}
37. Bb2 {[%clk 0:02:34]}  Rfd8 {[%clk 0:01:01]} 38. Rd3 {[%clk 0:02:59]}  Nb4 {[%clk 0:00:50]} 39. Rd2 {[%clk 0:02:18]}  Rd7 {[%clk 0:00:42]}
40. Re1 {[%clk 0:02:12]}  Kf8 {[%clk 0:00:51]} 41. h5 {[%clk 0:28:04]}  f5 {[%clk 0:27:53]} 42. hxg6 {[%clk 0:19:44]}  hxg6 {[%clk 0:28:19]}
43. Re6 {[%clk 0:19:08]}  a5 {[%clk 0:25:31]} 44. Rf6+ {[%clk 0:19:07]}  Rf7 {[%clk 0:25:33]} 45. Rxg6 {[%clk 0:17:55]}  Rh7+ {[%clk 0:22:53]}
46. Kg1 {[%clk 0:18:02]}  Na2 {[%clk 0:16:56]} 47. d7 {[%clk 0:11:12]}  Rd8 {[%clk 0:16:21]} 48. Nc5 {[%clk 0:09:20]}  c1=Q+ {[%clk 0:14:56]}
49. Bxc1 {[%clk 0:09:45]}  Kf7 {[%clk 0:10:13]} 50. Ne6 {[%clk 0:08:24]}  Rdh8 {[%clk 0:08:00]} 51. d8=Q {[%clk 0:04:31]}  Rh1+ {[%clk 0:07:45]}
52. Kg2 {[%clk 0:04:37]}  R1h2+ {[%clk 0:07:50]} 53. Kg3 {[%clk 0:04:48]}  R2h3+ {[%clk 0:08:00]} 54. Kf4 {[%clk 0:05:08]}  Rxd8 {[%clk 0:08:20]}
55. Nxd8+ {[%clk 0:03:11]}  Kxg6 {[%clk 0:08:42]} 56. Rxa2 {[%clk 0:02:05]}  Rh4+ {[%clk 0:08:25]} 57. Ke5 {[%clk 0:01:56]}  Re4+ {[%clk 0:08:51]}
58. Kd5 {[%clk 0:02:14]}  Re1 {[%clk 0:08:31]} 59. Rg2+ {[%clk 0:02:38]}  Kh5 {[%clk 0:07:28]} 60. Bd2 {[%clk 0:02:59]}  Rd1 {[%clk 0:06:37]}
61. Ne6 {[%clk 0:03:10]}  b4 {[%clk 0:06:10]} 62. Ke5 {[%clk 0:02:44]}  Kh4 {[%clk 0:05:49]} 63. Bg5+ {[%clk 0:02:47]}  Kh5 {[%clk 0:05:13]}
64. Nf4 {[%clk 0:03:13]} 1-0

[Event "2026 European Womens Championship"]
[Site "Batumi, GE"]
[Date "2026.05.30"]
[Round "6"]
[White "Rodshtein, Tereza"]
[Black "Sliwicka, Alicja"]
[Result "0-1"]
[Board "81"]
[TimeControl "5400+30"]
[WhiteFideId "325449"]
[BlackFideId "1150677"]
[WhiteElo "2218"]
[BlackElo "2315"]
[WhiteTitle "WGM"]
[BlackTitle "WGM"]
[WhiteClock "0:14:28"]
[BlackClock "0:06:32"]
[Variant "Standard"]

1. e4 {[%clk 1:30:57]}  c5 {[%clk 1:30:53]} 2. Nf3 {[%clk 1:31:20]}  Nc6 {[%clk 1:31:18]} 3. d4 {[%clk 1:31:24]}  cxd4 {[%clk 1:31:43]}
4. Nxd4 {[%clk 1:31:49]}  e5 {[%clk 1:32:07]} 5. Nf5 {[%clk 1:31:36]}  d5 {[%clk 1:30:24]} 6. exd5 {[%clk 1:31:00]}  Bxf5 {[%clk 1:29:10]}
7. dxc6 {[%clk 1:31:21]}  Qxd1+ {[%clk 1:23:39]} 8. Kxd1 {[%clk 1:31:49]}  bxc6 {[%clk 1:21:00]} 9. Bd3 {[%clk 1:29:55]}  Bxd3 {[%clk 1:05:33]}
10. cxd3 {[%clk 1:30:16]}  Bc5 {[%clk 1:04:35]} 11. Be3 {[%clk 1:25:34]}  Bxe3 {[%clk 1:02:21]} 12. fxe3 {[%clk 1:25:55]}  Ne7 {[%clk 0:58:33]}
13. Ke2 {[%clk 1:22:15]}  Kd7 {[%clk 0:56:26]} 14. Nd2 {[%clk 1:18:11]}  Rhb8 {[%clk 0:55:01]} 15. Nc4 {[%clk 1:18:19]}  f6 {[%clk 0:55:00]}
16. g4 {[%clk 1:07:55]}  Nc8 {[%clk 0:50:23]} 17. Rac1 {[%clk 1:05:39]}  Nd6 {[%clk 0:49:23]} 18. b3 {[%clk 1:05:19]}  Rb4 {[%clk 0:47:07]}
19. Nxd6 {[%clk 1:01:38]}  Kxd6 {[%clk 0:47:31]} 20. Kf3 {[%clk 1:01:46]}  a5 {[%clk 0:46:40]} 21. Rc3 {[%clk 1:00:24]}  a4 {[%clk 0:41:06]}
22. Rhc1 {[%clk 0:59:55]}  Ra6 {[%clk 0:38:57]} 23. bxa4 {[%clk 0:54:33]}  Rbxa4 {[%clk 0:38:30]} 24. R1c2 {[%clk 0:53:14]}  g6 {[%clk 0:33:39]}
25. h3 {[%clk 0:45:15]}  h6 {[%clk 0:26:02]} 26. Ke2 {[%clk 0:38:36]}  f5 {[%clk 0:24:00]} 27. Kf3 {[%clk 0:31:47]}  Ra3 {[%clk 0:20:49]}
28. gxf5 {[%clk 0:30:52]}  gxf5 {[%clk 0:21:07]} 29. d4 {[%clk 0:26:57]}  exd4 {[%clk 0:18:48]} 30. exd4 {[%clk 0:27:23]}  Rxc3+ {[%clk 0:12:10]}
31. Rxc3 {[%clk 0:27:51]}  Kd5 {[%clk 0:12:12]} 32. Ke3 {[%clk 0:23:01]}  Rxa2 {[%clk 0:11:35]} 33. Rc5+ {[%clk 0:23:21]}  Kd6 {[%clk 0:11:56]}
34. Rxf5 {[%clk 0:22:42]}  Ra3+ {[%clk 0:12:22]} 35. Ke4 {[%clk 0:23:02]}  Rxh3 {[%clk 0:12:45]} 36. Rf6+ {[%clk 0:23:28]}  Kd7 {[%clk 0:12:35]}
37. Rg6 {[%clk 0:21:11]}  Kc7 {[%clk 0:10:00]} 38. Rg8 {[%clk 0:16:21]}  Rh1 {[%clk 0:10:19]} 39. Rh8 {[%clk 0:14:22]}  Kd7 {[%clk 0:06:45]}
40. Kd3 {[%clk 0:11:35]}  h5 {[%clk 0:06:27]} 41. Ke4 {[%clk 0:08:24]}  Kc7 {[%clk 0:01:09]} 42. Rh6 {[%clk 0:07:59]}  Kb7 {[%clk 0:29:01]}
43. Ke5 {[%clk 0:30:31]}  h4 {[%clk 0:21:44]} 44. d5 {[%clk 0:29:04]}  c5 {[%clk 0:21:17]} 45. Rh7+ {[%clk 0:27:50]}  Kb6 {[%clk 0:20:45]}
46. d6 {[%clk 0:19:34]}  h3 {[%clk 0:13:52]} 47. Ke6 {[%clk 0:17:33]}  h2 {[%clk 0:09:44]} 48. Kd7 {[%clk 0:14:54]}  c4 {[%clk 0:07:04]}
49. Kc8 {[%clk 0:15:12]}  Ra1 {[%clk 0:06:52]} 50. Rxh2 {[%clk 0:14:17]}  Kc6 {[%clk 0:06:58]} 51. Kb8 {[%clk 0:14:28]}  Kxd6 {[%clk 0:06:32]} 0-1

[Event "2026 European Womens Championship"]
[Site "Batumi, GE"]
[Date "2026.05.30"]
[Round "6"]
[White "Venskaya, Nika"]
[Black "Matnadze Bujiashvili, Ann"]
[Result "1/2-1/2"]
[Board "82"]
[TimeControl "5400+30"]
[WhiteFideId "13523503"]
[BlackFideId "13601377"]
[WhiteElo "1937"]
[BlackElo "2310"]
[WhiteTitle "WCM"]
[BlackTitle "IM"]
[WhiteClock "0:17:32"]
[BlackClock "0:30:41"]
[Variant "Standard"]

1. d4 {[%clk 1:30:54]}  Nf6 {[%clk 1:30:53]} 2. c4 {[%clk 1:31:14]}  e6 {[%clk 1:31:18]} 3. Nf3 {[%clk 1:31:40]}  d5 {[%clk 1:31:41]}
4. g3 {[%clk 1:32:06]}  Bb4+ {[%clk 1:31:55]} 5. Bd2 {[%clk 1:32:33]}  Be7 {[%clk 1:32:20]} 6. Bg2 {[%clk 1:32:55]}  c6 {[%clk 1:32:27]}
7. Qc2 {[%clk 1:33:05]}  Nbd7 {[%clk 1:32:44]} 8. O-O {[%clk 1:33:27]}  Ne4 {[%clk 1:33:01]} 9. Nc3 {[%clk 1:28:25]}  f5 {[%clk 1:32:25]}
10. Bf4 {[%clk 1:28:18]}  g5 {[%clk 1:31:03]} 11. Be3 {[%clk 1:25:56]}  h5 {[%clk 1:24:27]} 12. Nxe4 {[%clk 1:21:53]}  dxe4 {[%clk 1:23:43]}
13. Ne5 {[%clk 1:20:27]}  Nxe5 {[%clk 1:12:07]} 14. dxe5 {[%clk 1:19:41]}  Kf7 {[%clk 1:10:11]} 15. f3 {[%clk 0:53:04]}  exf3 {[%clk 1:10:03]}
16. Bxf3 {[%clk 0:53:09]}  Qc7 {[%clk 0:49:29]} 17. Bd4 {[%clk 0:49:14]}  g4 {[%clk 0:31:26]} 18. Bg2 {[%clk 0:47:43]}  Rd8 {[%clk 0:31:38]}
19. Rad1 {[%clk 0:38:56]}  Rxd4 {[%clk 0:23:39]} 20. Rxd4 {[%clk 0:39:08]}  Bc5 {[%clk 0:23:54]} 21. e3 {[%clk 0:37:51]}  Qxe5 {[%clk 0:21:33]}
22. Rd3 {[%clk 0:26:25]}  Bxe3+ {[%clk 0:21:45]} 23. Kh1 {[%clk 0:26:52]}  Bg5 {[%clk 0:21:39]} 24. b3 {[%clk 0:23:18]}  Be7 {[%clk 0:19:30]}
25. Qd2 {[%clk 0:22:04]}  Qf6 {[%clk 0:19:57]} 26. b4 {[%clk 0:21:09]}  a6 {[%clk 0:16:47]} 27. a4 {[%clk 0:20:46]}  e5 {[%clk 0:13:30]}
28. b5 {[%clk 0:17:39]}  axb5 {[%clk 0:13:57]} 29. axb5 {[%clk 0:17:42]}  Ra4 {[%clk 0:10:12]} 30. Qc2 {[%clk 0:16:40]}  Rb4 {[%clk 0:10:13]}
31. Rb3 {[%clk 0:15:04]}  Rxb3 {[%clk 0:07:29]} 32. Qxb3 {[%clk 0:15:33]}  h4 {[%clk 0:04:28]} 33. bxc6 {[%clk 0:13:23]}  bxc6 {[%clk 0:04:43]}
34. gxh4 {[%clk 0:04:24]}  f4 {[%clk 0:03:02]} 35. Qd3 {[%clk 0:04:21]}  Kg7 {[%clk 0:02:27]} 36. Be4 {[%clk 0:04:47]}  Qxh4 {[%clk 0:02:32]}
37. Qc3 {[%clk 0:02:05]}  Bf6 {[%clk 0:01:55]} 38. Rg1 {[%clk 0:01:56]}  g3 {[%clk 0:01:53]} 39. Rg2 {[%clk 0:01:29]}  c5 {[%clk 0:01:28]}
40. Kg1 {[%clk 0:00:57]}  Qg4 {[%clk 0:00:35]} 41. hxg3 {[%clk 0:27:50]}  Qd1+ {[%clk 0:30:59]} 42. Kh2 {[%clk 0:26:46]}  Qh5+ {[%clk 0:31:05]}
43. Kg1 {[%clk 0:26:43]}  Qd1+ {[%clk 0:30:41]} 44. Kf2 {[%clk 0:17:32]} 1/2-1/2

[Event "2026 European Womens Championship"]
[Site "Batumi, GE"]
[Date "2026.05.30"]
[Round "6"]
[White "Arakhamia-Grant, Ketevan"]
[Black "Radikovic, Anamarija"]
[Result "1-0"]
[Board "83"]
[TimeControl "5400+30"]
[WhiteFideId "13600168"]
[BlackFideId "14546264"]
[WhiteElo "2306"]
[BlackElo "1974"]
[WhiteTitle "GM"]
[BlackTitle "WFM"]
[WhiteClock "0:02:13"]
[BlackClock "0:13:24"]
[Variant "Standard"]

1. e4 {[%clk 1:30:57]}  c5 {[%clk 1:30:54]} 2. Nf3 {[%clk 1:31:22]}  g6 {[%clk 1:31:17]} 3. d4 {[%clk 1:31:10]}  cxd4 {[%clk 1:31:40]}
4. Nxd4 {[%clk 1:31:35]}  Bg7 {[%clk 1:32:04]} 5. c4 {[%clk 1:31:45]}  Nc6 {[%clk 1:32:26]} 6. Be3 {[%clk 1:30:13]}  Qb6 {[%clk 1:31:54]}
7. Nb3 {[%clk 1:28:33]}  Qd8 {[%clk 1:32:06]} 8. Qd2 {[%clk 1:27:42]}  Nf6 {[%clk 1:31:49]} 9. f3 {[%clk 1:27:49]}  d6 {[%clk 1:31:54]}
10. Nc3 {[%clk 1:27:47]}  a5 {[%clk 1:31:21]} 11. a4 {[%clk 1:22:40]}  Be6 {[%clk 1:29:30]} 12. Nd5 {[%clk 1:17:13]}  Nd7 {[%clk 1:24:04]}
13. Be2 {[%clk 1:14:39]}  O-O {[%clk 1:21:13]} 14. h4 {[%clk 0:58:18]}  Bxd5 {[%clk 1:04:53]} 15. exd5 {[%clk 0:56:50]}  Nb4 {[%clk 1:05:09]}
16. h5 {[%clk 0:56:34]}  Rc8 {[%clk 1:00:36]} 17. Bh6 {[%clk 0:21:54]}  Bxh6 {[%clk 0:37:48]} 18. Qxh6 {[%clk 0:22:18]}  Nf6 {[%clk 0:38:14]}
19. Nd4 {[%clk 0:21:02]}  Qb6 {[%clk 0:36:58]} 20. Rd1 {[%clk 0:20:13]}  Na6 {[%clk 0:24:21]} 21. g4 {[%clk 0:11:49]}  Qb4+ {[%clk 0:17:33]}
22. Rd2 {[%clk 0:07:15]}  Rxc4 {[%clk 0:16:14]} 23. Bxc4 {[%clk 0:07:25]}  Qxc4 {[%clk 0:16:38]} 24. hxg6 {[%clk 0:05:09]}  fxg6 {[%clk 0:16:46]}
25. Ne6 {[%clk 0:05:21]}  Rf7 {[%clk 0:16:31]} 26. Rdh2 {[%clk 0:02:36]}  Qxd5 {[%clk 0:13:24]} 27. Qxg6+ {[%clk 0:02:13]} 1-0

[Event "2026 European Womens Championship"]
[Site "Batumi, GE"]
[Date "2026.05.30"]
[Round "6"]
[White "Abdinova, Narmin"]
[Black "Zimina, Olga"]
[Result "1/2-1/2"]
[Board "84"]
[TimeControl "5400+30"]
[WhiteFideId "13425340"]
[BlackFideId "4132190"]
[WhiteElo "2165"]
[BlackElo "2290"]
[WhiteTitle "WIM"]
[BlackTitle "IM"]
[WhiteClock "0:01:27"]
[BlackClock "0:00:40"]
[Variant "Standard"]

1. e4 {[%clk 1:28:45]}  c6 {[%clk 1:30:33]} 2. Nc3 {[%clk 1:29:10]}  d5 {[%clk 1:30:59]} 3. Qf3 {[%clk 1:29:33]}  d4 {[%clk 1:28:22]}
4. Bc4 {[%clk 1:29:52]}  e6 {[%clk 1:27:42]} 5. Nce2 {[%clk 1:30:09]}  c5 {[%clk 1:27:33]} 6. d3 {[%clk 1:30:31]}  Nc6 {[%clk 1:27:42]}
7. Qg3 {[%clk 1:29:52]}  h5 {[%clk 1:19:43]} 8. f4 {[%clk 1:21:28]}  Na5 {[%clk 1:14:04]} 9. Bb5+ {[%clk 1:11:24]}  Bd7 {[%clk 1:14:27]}
10. Bxd7+ {[%clk 1:11:43]}  Qxd7 {[%clk 1:14:51]} 11. Bd2 {[%clk 1:11:40]}  Nc6 {[%clk 1:08:48]} 12. Nf3 {[%clk 1:11:57]}  Nf6 {[%clk 1:06:11]}
13. O-O {[%clk 1:03:37]}  O-O-O {[%clk 0:58:27]} 14. a3 {[%clk 0:54:55]}  h4 {[%clk 0:45:32]} 15. Nxh4 {[%clk 0:43:59]}  c4 {[%clk 0:44:33]}
16. Nf3 {[%clk 0:41:06]}  Bc5 {[%clk 0:44:15]} 17. b4 {[%clk 0:33:48]}  cxb3 {[%clk 0:39:58]} 18. cxb3 {[%clk 0:28:51]}  Nxe4 {[%clk 0:39:20]}
19. dxe4 {[%clk 0:26:57]}  d3+ {[%clk 0:39:44]} 20. Kh1 {[%clk 0:26:56]}  dxe2 {[%clk 0:40:07]} 21. Rfc1 {[%clk 0:23:53]}  Bd4 {[%clk 0:33:59]}
22. Rab1 {[%clk 0:21:42]}  f5 {[%clk 0:31:45]} 23. e5 {[%clk 0:19:00]}  Kb8 {[%clk 0:30:32]} 24. Qe1 {[%clk 0:17:34]}  Bb6 {[%clk 0:22:39]}
25. Qxe2 {[%clk 0:13:23]}  Nd4 {[%clk 0:22:58]} 26. Nxd4 {[%clk 0:13:07]}  Qxd4 {[%clk 0:23:22]} 27. Bb4 {[%clk 0:07:39]}  Qxf4 {[%clk 0:18:56]}
28. h3 {[%clk 0:07:32]}  Be3 {[%clk 0:14:15]} 29. Re1 {[%clk 0:04:05]}  Bb6 {[%clk 0:10:30]} 30. Bd6+ {[%clk 0:03:23]}  Ka8 {[%clk 0:10:55]}
31. Rf1 {[%clk 0:03:27]}  Qh4 {[%clk 0:10:00]} 32. Qc4 {[%clk 0:01:54]}  Qg3 {[%clk 0:10:14]} 33. Qf4 {[%clk 0:02:06]}  Qg6 {[%clk 0:08:04]}
34. Rbc1 {[%clk 0:02:11]}  Qh7 {[%clk 0:04:54]} 35. Bc7 {[%clk 0:02:01]}  Rd4 {[%clk 0:04:55]} 36. Qf3 {[%clk 0:02:15]}  g5 {[%clk 0:04:37]}
37. Bxb6 {[%clk 0:02:20]}  axb6 {[%clk 0:04:54]} 38. Qe3 {[%clk 0:02:19]}  Rg4 {[%clk 0:02:22]} 39. Rf3 {[%clk 0:02:00]}  Ka7 {[%clk 0:01:44]}
40. Kg1 {[%clk 0:01:24]}  Re4 {[%clk 0:01:44]} 41. Qxg5 {[%clk 0:01:25]}  Rg8 {[%clk 0:24:37]} 42. Qd2 {[%clk 0:29:22]}  Qg7 {[%clk 0:23:44]}
43. Qb2 {[%clk 0:08:31]}  Rd8 {[%clk 0:16:50]} 44. Kh2 {[%clk 0:08:23]}  Rdd4 {[%clk 0:17:04]} 45. Qf2 {[%clk 0:07:01]}  f4 {[%clk 0:05:19]}
46. Rc8 {[%clk 0:03:16]}  Rd1 {[%clk 0:03:31]} 47. Rxf4 {[%clk 0:02:47]}  Qxe5 {[%clk 0:03:47]} 48. Rc4 {[%clk 0:02:18]}  Rde1 {[%clk 0:01:52]}
49. Qf3 {[%clk 0:00:33]}  Rxc4 {[%clk 0:01:45]} 50. bxc4 {[%clk 0:00:57]}  Re3 {[%clk 0:01:53]} 51. Qf1 {[%clk 0:00:32]}  Re1 {[%clk 0:01:15]}
52. Qf3 {[%clk 0:00:44]}  Re3 {[%clk 0:01:21]} 53. Qf1 {[%clk 0:01:04]}  Re1 {[%clk 0:00:42]} 54. Qf3 {[%clk 0:01:29]}  Re3 {[%clk 0:00:35]}
55. Qf1 {[%clk 0:01:27]}  Re1 {[%clk 0:00:40]} 1/2-1/2

[Event "2026 European Womens Championship"]
[Site "Batumi, GE"]
[Date "2026.05.30"]
[Round "6"]
[White "Tashkinova, Sofiia"]
[Black "Efroimski, Marsel"]
[Result "0-1"]
[Board "85"]
[TimeControl "5400+30"]
[WhiteFideId "14188309"]
[BlackFideId "2810964"]
[WhiteElo "2085"]
[BlackElo "2386"]
[WhiteTitle "WFM"]
[BlackTitle "IM"]
[WhiteClock "0:14:41"]
[BlackClock "0:08:32"]
[Variant "Standard"]

1. e4 {[%clk 1:29:44]}  c5 {[%clk 1:27:04]} 2. Nf3 {[%clk 1:30:06]}  d6 {[%clk 1:27:30]} 3. d4 {[%clk 1:30:05]}  cxd4 {[%clk 1:27:46]}
4. Nxd4 {[%clk 1:30:27]}  Nf6 {[%clk 1:28:14]} 5. Nc3 {[%clk 1:30:46]}  a6 {[%clk 1:28:41]} 6. Be2 {[%clk 1:29:25]}  e5 {[%clk 1:29:02]}
7. Nb3 {[%clk 1:29:47]}  Be6 {[%clk 1:29:27]} 8. Be3 {[%clk 1:29:06]}  Nbd7 {[%clk 1:17:48]} 9. g4 {[%clk 1:18:17]}  h6 {[%clk 1:25:44]}
10. h4 {[%clk 1:14:46]}  b5 {[%clk 1:15:13]} 11. a3 {[%clk 1:11:30]}  Nb6 {[%clk 1:07:13]} 12. Rg1 {[%clk 1:04:06]}  Nc4 {[%clk 1:02:58]}
13. g5 {[%clk 1:00:39]}  Nd7 {[%clk 0:42:17]} 14. Bg4 {[%clk 0:53:51]}  Nxb2 {[%clk 0:39:23]} 15. Qe2 {[%clk 0:52:30]}  h5 {[%clk 0:29:17]}
16. Bxe6 {[%clk 0:48:24]}  fxe6 {[%clk 0:29:45]} 17. Bc1 {[%clk 0:48:25]}  Na4 {[%clk 0:25:57]} 18. Nxa4 {[%clk 0:43:22]}  bxa4 {[%clk 0:26:25]}
19. Nd2 {[%clk 0:43:39]}  Qc7 {[%clk 0:25:45]} 20. c4 {[%clk 0:40:19]}  g6 {[%clk 0:25:52]} 21. Rb1 {[%clk 0:38:07]}  Bg7 {[%clk 0:23:41]}
22. Nf1 {[%clk 0:30:25]}  Rc8 {[%clk 0:19:38]} 23. Ne3 {[%clk 0:30:25]}  O-O {[%clk 0:19:50]} 24. f3 {[%clk 0:28:32]}  Nc5 {[%clk 0:19:15]}
25. Bd2 {[%clk 0:25:24]}  Nb3 {[%clk 0:15:15]} 26. Rf1 {[%clk 0:24:51]}  Rb8 {[%clk 0:15:19]} 27. Qd1 {[%clk 0:22:58]}  Qc5 {[%clk 0:13:30]}
28. Kf2 {[%clk 0:22:02]}  Qxa3 {[%clk 0:11:57]} 29. Kg3 {[%clk 0:21:32]}  Qc5 {[%clk 0:09:50]} 30. Qc2 {[%clk 0:19:57]}  Rb7 {[%clk 0:07:46]}
31. Qd3 {[%clk 0:19:32]}  Qd4 {[%clk 0:07:44]} 32. Qe2 {[%clk 0:14:25]}  Nxd2 {[%clk 0:07:23]} 33. Rxb7 {[%clk 0:14:46]}  Qxe3 {[%clk 0:07:42]}
34. Qxe3 {[%clk 0:14:16]}  Nxf1+ {[%clk 0:08:07]} 35. Kf2 {[%clk 0:14:41]}  Nxe3 {[%clk 0:08:32]} 0-1